bitfinex/quotes_SOLUSD_20250915
["timestamp","ask_amount","ask_price","bid_price","bid_amount"]
[1757916375362,1e-08,244.34,244.29,0.69]
[1757916375562,1.54769444,244.32,244.3,4.09332787]
[1757916375967,1.54769444,244.32,244.3,15.01664755]
[1757916376140,1e-08,244.34,244.3,14.32664755]
[1757916376341,1.54769444,244.32,244.3,14.32664755]
[1757916377063,1.54769444,244.31,244.3,14.32664755]
[1757916377267,2.26769444,244.31,244.3,4.09332787]
[1757916377638,2.26769444,244.31,244.27,0.03]
[1757916377956,1.54769444,244.28,244.27,0.03]
[1757916378161,0.72,244.3,244.27,0.03]
[1757916378363,1.54769444,244.28,244.27,0.03]
[1757916380363,2.26769444,244.28,244.27,0.03]
[1757916383058,1.54769444,244.28,244.27,0.03]
[1757916383253,2.26769444,244.28,244.27,0.03]
[1757916386154,33.82769444,244.28,244.27,0.03]
[1757916386874,37.92135744,244.28,244.27,0.03]
[1757916387464,37.92135744,244.28,244.26,0.03]
[1757916387649,1.54769444,244.27,244.26,0.03]
[1757916388053,2.26769444,244.27,244.26,0.03]
[1757916388384,0.72,244.27,244.26,0.03]
[1757916389452,2.26769444,244.27,244.26,0.03]
[1757916399290,1.54769444,244.27,244.26,0.03]
[1757916400092,2.23769444,244.27,244.26,0.03]
[1757916401298,19.92711904,244.27,244.26,0.03]
[1757916402896,39.59559401,244.24,244.23,0.03]
[1757916403099,74.25098289,244.24,244.16,0.03]
[1757916403280,1.54769444,244.19,244.16,0.03]
[1757916403474,33.10769444,244.19,244.16,0.03]
[1757916404097,33.79769444,244.19,244.16,0.03]
[1757916405497,33.10769444,244.19,244.16,0.03]
[1757916406401,1.54769444,244.19,244.16,0.03]
[1757916406621,31.56,244.2,244.18,0.69]
[1757916406810,1.54769444,244.19,244.18,4.7853395]
[1757916406986,1.54769444,244.19,244.18,0.03]
[1757916407497,37.75077776,244.2,244.18,0.03]
[1757916407702,33.10769444,244.19,244.18,4.78520657]
[1757916408375,27.54769444,244.19,244.18,4.78520657]
[1757916408576,1.54769444,244.19,244.18,4.78520657]
[1757916412186,26.0,244.23,244.18,15.02355532]
[1757916412392,0.06,244.27,244.18,15.02355532]
[1757916412393,1.54769444,244.24,244.19,0.66]
[1757916412910,26.0,244.26,244.19,0.66]
[1757916412911,0.06,244.27,244.2,14.33251432]
[1757916413101,1.54769444,244.26,244.21,0.66]
[1757916413614,1.60769444,244.27,244.21,0.66]
[1757916413817,0.06,244.27,244.21,2.20769444]
[1757916414127,0.06,244.27,244.22,0.66]
[1757916414487,0.06,244.27,244.22,2.20769444]
[1757916414701,0.06,244.27,244.23,2.20769444]
[1757916414899,0.06,244.27,244.23,0.66]
[1757916415188,0.06,244.27,244.24,0.66]
[1757916416491,0.06,244.27,244.25,4.09416581]
[1757916417108,0.06,244.27,244.26,0.66]
[1757916424136,1e-08,244.27,244.26,2.20769444]
[1757916424530,0.06,244.3,244.26,2.20769444]
[1757916424531,1e-08,244.3,244.27,14.32840708]
[1757916424733,1e-08,244.33,244.29,1.54769444]
[1757916424934,1e-08,244.33,244.31,1.54769444]
[1757916425107,1e-08,244.33,244.32,1.54769444]
[1757916425745,1e-08,244.36,244.32,2.25769444]
[1757916425927,1e-08,244.36,244.33,0.71]
[1757916426937,1e-08,244.36,244.34,4.09265777]
[1757916427330,1e-08,244.36,244.35,0.71]
[1757916427714,1.54769445,244.36,244.34,4.09265777]
[1757916428053,1.54769445,244.36,244.34,4.80265777]
[1757916428220,1.54769445,244.36,244.34,4.09265777]
[1757916428221,1.54769444,244.35,244.34,4.09265777]
[1757916428948,1.54769444,244.35,244.32,0.69]
[1757916429126,1.54769444,244.35,244.3,20.46663937]
[1757916429328,1e-08,244.36,244.33,0.69]
[1757916429746,1e-08,244.36,244.34,0.69]
[1757916430940,1e-08,244.36,244.3,1.54769444]
[1757916432341,1e-08,244.36,244.32,1.54769444]
[1757916432848,1e-08,244.36,244.33,14.32488846]
[1757916433630,0.06,244.38,244.34,0.69]
[1757916433828,0.06,244.38,244.33,16.74016033]
[1757916434022,0.06,244.38,244.33,17.43016033]
[1757916434342,0.06,244.39,244.33,35.47901484]
[1757916434563,0.06,244.39,244.33,37.89428671]
[1757916434721,0.06,244.39,244.34,2.41527187]
[1757916434921,0.06,244.39,244.35,14.32371598]
[1757916435425,0.06,244.39,244.35,15.01371598]
[1757916439246,2.41527187,244.42,244.35,37.89143925]
[1757916439454,2.41527187,244.43,244.37,2.41527187]
[1757916439753,2.41527187,244.42,244.36,16.01086588]
[1757916440549,2.41527187,244.42,244.36,47.55086588]
[1757916440852,2.41527187,244.41,244.36,31.54]
[1757916441032,2.41527187,244.39,244.35,66.32616738]
[1757916442231,2.41527187,244.39,244.35,30.6936771]
[1757916442944,2.41527187,244.4,244.35,30.6936771]
[1757916444445,3.09527187,244.39,244.35,30.6936771]
[1757916445023,2.41527187,244.37,244.35,30.6936771]
[1757916445242,3.09527187,244.37,244.35,30.6936771]
[1757916445441,2.41527187,244.36,244.35,10.2312257]
[1757916447053,0.68,244.39,244.32,0.03]
[1757916447358,2.41527187,244.36,244.32,0.03]
[1757916448052,0.06,244.42,244.32,0.03]
[1757916448242,2.41527187,244.33,244.32,0.03]
[1757916448424,3.09527187,244.33,244.32,0.03]
[1757916448630,2.41527187,244.33,244.32,0.03]
[1757916448941,3.09527187,244.33,244.32,0.03]
[1757916452637,2.41527187,244.33,244.32,0.03]
[1757916453547,3.09527187,244.33,244.32,0.03]
[1757916453847,2.41527187,244.35,244.32,0.03]
[1757916454160,2.41527187,244.36,244.32,0.72]
[1757916454454,2.41527187,244.38,244.33,0.69]
[1757916455480,2.41527187,244.37,244.33,0.69]
[1757916455652,2.41527187,244.38,244.34,14.32430219]
[1757916455852,3.09527187,244.37,244.34,14.32430219]
[1757916456649,3.09527187,244.36,244.34,14.32430219]
[1757916456848,3.09527187,244.35,244.34,14.32430219]
[1757916457160,0.68,244.35,244.34,14.32430219]
[1757916457473,3.09527187,244.35,244.34,14.32430219]
[1757916457671,3.09527187,244.35,244.32,0.03]
[1757916459463,0.67,244.36,244.32,0.03]
[1757916459664,3.08527187,244.35,244.32,0.03]
[1757916460068,0.67,244.35,244.32,0.03]
[1757916460267,0.67,244.37,244.32,0.03]
[1757916460464,3.08527187,244.37,244.32,0.03]
[1757916460662,3.08527187,244.37,244.32,0.68]
[1757916461052,3.08527187,244.37,244.33,14.32488846]
[1757916461277,0.67,244.37,244.33,14.32488846]
[1757916461482,3.08527187,244.37,244.33,14.32488846]
[1757916461885,0.67,244.36,244.33,14.32488846]
[1757916462260,3.08527187,244.36,244.33,14.32488846]
[1757916462457,3.08527187,244.35,244.33,14.32488846]
[1757916463390,3.08527187,244.35,244.32,0.03]
[1757916464388,3.08527187,244.37,244.32,0.03]
[1757916464772,3.08527187,244.37,244.32,0.68]
[1757916465288,2.41527187,244.38,244.33,0.65]
[1757916465488,0.67,244.37,244.32,34.82043876]
[1757916465690,0.67,244.36,244.32,34.82043876]
[1757916466480,3.08527187,244.36,244.32,34.82043876]
[1757916466999,2.41527187,244.37,244.32,34.82043876]
[1757916467167,0.67,244.36,244.32,34.82043876]
[1757916467964,3.08527187,244.36,244.32,34.82043876]
[1757916468885,0.67,244.35,244.32,34.82043876]
[1757916469078,0.67,244.37,244.32,34.82043876]
[1757916469275,3.08527187,244.36,244.32,34.82043876]
[1757916469475,3.08527187,244.36,244.32,30.72744597]
[1757916469872,0.67,244.36,244.32,30.72744597]
[1757916470080,3.08527187,244.36,244.32,30.72744597]
[1757916472990,3.08527187,244.36,244.32,35.47043876]
[1757916473197,3.08527187,244.36,244.32,34.82043876]
[1757916473397,0.06,244.39,244.33,0.65]
[1757916473770,2.47527187,244.39,244.33,0.65]
[1757916473971,0.06,244.39,244.33,3.06527187]
[1757916474270,2.41527187,244.41,244.35,2.41527187]
[1757916474471,0.06,244.42,244.33,31.54]
[1757916474472,0.06,244.42,244.36,3.06527187]
[1757916474670,0.06,244.42,244.36,0.65]
[1757916474890,0.06,244.42,244.36,3.06527187]
[1757916475194,0.06,244.42,244.38,14.32195759]
[1757916475582,0.73,244.42,244.38,14.32195759]
[1757916475985,3.14527187,244.42,244.38,14.32195759]
[1757916477802,2.41527187,244.41,244.38,14.32195759]
[1757916480913,3.14527187,244.42,244.38,14.32195759]
[1757916481313,0.06,244.41,244.38,14.32195759]
[1757916482914,2.47527187,244.41,244.38,14.32195759]
[1757916483118,3.14527187,244.41,244.38,14.32195759]
[1757916483317,3.08527187,244.4,244.38,14.32195759]
[1757916483496,2.41527187,244.39,244.38,14.32195759]
[1757916484016,3.08527187,244.4,244.38,14.32195759]
[1757916484721,2.41527187,244.4,244.36,0.67]
[1757916485023,2.47527187,244.41,244.36,0.67]
[1757916485195,3.19527187,244.41,244.36,0.67]
[1757916485606,0.78,244.41,244.36,0.67]
[1757916485806,3.19527187,244.41,244.36,0.67]
[1757916486031,3.13527187,244.4,244.35,34.78616738]
[1757916486233,3.13527187,244.4,244.35,35.45616738]
[1757916487130,3.13527187,244.39,244.35,30.6936771]
[1757916487326,3.13527187,244.38,244.35,30.6936771]
[1757916487533,3.13527187,244.37,244.35,10.2312257]
[1757916487705,3.13527187,244.36,244.35,10.2312257]
[1757916488534,3.13527187,244.36,244.32,14.35547478]
[1757916489261,0.72,244.36,244.32,14.35547478]
[1757916489445,0.06,244.41,244.34,2.41527187]
[1757916489746,2.41527187,244.43,244.37,2.41527187]
[1757916490246,2.41527187,244.43,244.38,0.71]
[1757916490435,26.0,244.47,244.39,0.71]
[1757916490610,2.41527187,244.43,244.4,14.32078558]
[1757916491123,2.41527187,244.43,244.4,15.03078558]
[1757916492048,2.41527187,244.43,244.4,10.22913256]
[1757916492350,2.41527187,244.41,244.4,10.22913256]
[1757916493178,3.08527187,244.41,244.4,10.22913256]
[1757916493567,2.41527187,244.41,244.37,34.7829907]
[1757916493747,1.54568819,244.41,244.37,34.7829907]
[1757916493947,0.67,244.43,244.38,0.71]
[1757916494281,1.54568819,244.41,244.38,0.71]
[1757916494963,1.54568819,244.41,244.39,0.71]
[1757916495168,1.54568819,244.41,244.37,34.7829907]
[1757916495473,1.54568819,244.41,244.38,0.71]
[1757916495680,0.67,244.44,244.39,14.32137157]
[1757916495875,1.54568819,244.41,244.39,14.32137157]
[1757916496067,1.54568819,244.41,244.39,15.03137157]
[1757916496460,1.54568819,244.42,244.4,0.71]
[1757916496672,1.54568819,244.43,244.4,0.71]
[1757916498370,0.67,244.45,244.4,0.71]
[1757916498699,1.54568819,244.43,244.41,4.09148561]
[1757916499277,1.54568819,244.43,244.41,4.80148561]
[1757916499594,1.54568819,244.43,244.42,0.71]
[1757916499895,1.54568819,244.43,244.39,10.22955112]
[1757916500062,1.54568819,244.43,244.41,0.71]
[1757916500386,1.54568819,244.43,244.39,10.93955112]
[1757916500692,1.54568819,244.43,244.4,0.71]
[1757916500988,1.54568819,244.43,244.39,10.22955112]
[1757916501182,1.54568819,244.43,244.41,4.09148561]
[1757916501567,1.54568819,244.43,244.41,4.80148561]
[1757916501974,1.54568819,244.43,244.41,4.09148561]
[1757916503010,1.54568819,244.42,244.41,14.32019965]
[1757916503286,1.54568819,244.42,244.41,15.03019965]
[1757916503489,1.54568819,244.42,244.41,14.32019965]
[1757916503794,2.21568819,244.42,244.41,14.32019965]
[1757916504286,1.54568819,244.42,244.41,14.32019965]
[1757916505485,1.54568819,244.42,244.41,10.22871404]
[1757916505895,2.21568819,244.42,244.41,10.22871404]
[1757916506194,2.21568819,244.42,244.39,4.09182045]
[1757916506378,1.54568819,244.4,244.39,14.32137157]
[1757916507075,2.21568819,244.4,244.39,14.32137157]
[1757916507273,1.54568819,244.4,244.39,14.32137157]
[1757916507492,1.54568819,244.4,244.39,10.22955112]
[1757916508802,1.54568819,244.4,244.39,10.93955112]
[1757916509401,1.54568819,244.4,244.39,10.22955112]
[1757916511004,2.21568819,244.4,244.39,10.22955112]
[1757916511978,2.21568819,244.4,244.37,0.03]
[1757916512305,1.54568819,244.38,244.37,0.03]
[1757916512886,1.54568819,244.38,244.37,0.73]
[1757916513204,1.54568819,244.39,244.37,0.73]
[1757916513506,1.54568819,244.4,244.37,0.73]
[1757916514103,1.54568819,244.4,244.38,30.09198788]
[1757916516006,1.54568819,244.39,244.38,40.32195759]
[1757916516193,2.23568819,244.39,244.38,40.32195759]
[1757916516808,2.23568819,244.39,244.38,4.09198788]
[1757916518091,2.23568819,244.39,244.37,0.03]
[1757916518406,2.23568819,244.38,244.37,0.03]
[1757916519195,0.69,244.38,244.37,0.03]
[1757916519396,1.54568819,244.38,244.37,0.03]
[1757916519583,1.54568819,244.38,244.37,0.74]
[1757916519785,1.54568819,244.38,244.37,0.03]
[1757916519997,1.54568819,244.39,244.37,0.03]
[1757916520288,1.54568819,244.39,244.37,0.74]
[1757916520503,1.54568819,244.39,244.38,0.71]
[1757916520699,1.54568819,244.39,244.37,0.03]
[1757916520904,2.20568819,244.38,244.37,0.03]
[1757916521514,1.54568819,244.38,244.37,0.03]
[1757916521910,2.20568819,244.38,244.37,0.03]
[1757916527725,1.54568819,244.38,244.37,0.03]
[1757916528129,2.20568819,244.38,244.37,0.03]
[1757916530330,1.54568819,244.38,244.37,0.03]
[1757916530933,2.20568819,244.38,244.37,0.03]
[1757916534033,1.54568819,244.38,244.37,0.03]
[1757916536234,26.0,244.42,244.37,0.74]
[1757916536417,1.54568819,244.4,244.37,0.74]
[1757916536730,0.66,244.41,244.37,0.74]
[1757916536936,1.54568819,244.39,244.37,0.74]
[1757916537332,1.54568819,244.39,244.38,4.09198788]
[1757916537632,31.52,244.44,244.38,14.32195759]
[1757916537828,1.54568819,244.41,244.38,15.03195759]
[1757916538010,1.54568819,244.41,244.38,14.32195759]
[1757916538206,2.20568819,244.41,244.38,14.32195759]
[1757916538431,0.66,244.41,244.38,14.32195759]
[1757916538737,1.54568819,244.4,244.38,15.03195759]
[1757916539437,2.20568819,244.39,244.38,14.32195759]
[1757916539734,37.70275276,244.44,244.38,14.32195759]
[1757916539939,1.54568819,244.39,244.38,14.32195759]
[1757916540238,1.54568819,244.39,244.38,15.03195759]
[1757916540633,0.66,244.45,244.38,15.03195759]
[1757916540824,0.66,244.45,244.37,0.03]
[1757916540825,31.52,244.44,244.4,14.32078558]
[1757916541022,1.54568819,244.41,244.4,15.03078558]
[1757916541222,32.18,244.44,244.4,15.03078558]
[1757916541443,1.54568819,244.42,244.4,15.03078558]
[1757916541730,1.54568819,244.42,244.41,0.71]
[1757916541932,1.54568819,244.43,244.41,0.71]
[1757916542135,1.54568819,244.43,244.42,0.71]
[1757916542729,31.52,244.46,244.42,0.71]
[1757916542944,0.06,244.48,244.43,15.01902794]
[1757916543125,1.60568819,244.48,244.43,4.09115084]
[1757916543323,1.54568819,244.44,244.43,4.09115084]
[1757916543637,2.22568819,244.44,244.43,4.09115084]
[1757916543943,2.22568819,244.44,244.38,4.09198788]
[1757916543944,26.0,244.41,244.38,4.09198788]
[1757916544117,1.54568819,244.39,244.38,4.09198788]
[1757916544319,0.68,244.39,244.37,0.03]
[1757916544730,1.54568819,244.38,244.37,4.1221432]
[1757916545118,1.54568819,244.38,244.37,4.8221432]
[1757916545427,1.54568819,244.38,244.37,4.1221432]
[1757916545938,1.54568819,244.39,244.37,4.1221432]
[1757916546138,26.68,244.41,244.37,4.1221432]
[1757916546139,33.06568819,244.41,244.38,0.7]
[1757916546362,33.06568819,244.41,244.37,4.1221432]
[1757916546520,31.52,244.43,244.38,2.24568819]
[1757916546728,1.54568819,244.45,244.39,0.7]
[1757916546921,1.54568819,244.45,244.4,14.32078558]
[1757916547127,2.22568819,244.45,244.4,14.32078558]
[1757916547429,1.54568819,244.42,244.39,4.09168444]
[1757916547622,1.54568819,244.4,244.39,4.09168444]
[1757916548135,2.22568819,244.41,244.39,4.09168444]
[1757916548524,1.54568819,244.43,244.39,4.79168444]
[1757916548723,0.68,244.44,244.4,0.71]
[1757916548724,2.22568819,244.44,244.4,0.71]
[1757916548918,27.54568819,244.45,244.41,0.71]
[1757916549126,33.06568819,244.47,244.42,15.02961377]
[1757916549330,33.06568819,244.47,244.43,0.71]
[1757916549619,0.06,244.48,244.42,15.86530196]
[1757916549819,0.06,244.48,244.43,0.71]
[1757916550040,2.26568819,244.48,244.43,0.71]
[1757916550637,0.66,244.47,244.43,0.71]
[1757916550832,0.66,244.47,244.44,14.31844215]
[1757916551038,2.20568819,244.47,244.44,14.31844215]
[1757916551349,0.66,244.47,244.44,14.31844215]
[1757916551550,0.06,244.48,244.44,4.09098347]
[1757916551551,1.54568819,244.45,244.44,4.09098347]
[1757916551753,2.20568819,244.45,244.44,4.09098347]
[1757916552137,1.54568819,244.45,244.44,4.09098347]
[1757916552928,1.54568819,244.45,244.42,14.31961377]
[1757916553256,1.54568819,244.44,244.42,14.31961377]
[1757916553562,26.06,244.48,244.43,0.71]
[1757916553765,1.54568819,244.46,244.43,0.71]
[1757916553929,0.06,244.48,244.44,0.71]
[1757916554249,0.06,244.48,244.45,0.71]
[1757916555042,27.60568819,244.48,244.47,4.09048144]
[1757916555248,0.06,244.48,244.47,4.80048144]
[1757916555587,0.06,244.48,244.47,4.09048144]
[1757916555969,0.06,244.48,244.47,4.80048144]
[1757916556839,2.47364666,244.48,244.47,4.09048144]
[1757916557566,0.06,244.48,244.47,4.09048144]
[1757916557765,2.47364666,244.48,244.47,4.09048144]
[1757916558338,0.06,244.48,244.47,4.09048144]
[1757916558539,2.47364666,244.48,244.47,4.09048144]
[1757916559258,0.06,244.48,244.47,0.71]
[1757916560150,0.06,244.48,244.45,10.22701485]
[1757916560351,3.13364666,244.48,244.45,10.22701485]
[1757916560766,2.47364666,244.48,244.45,10.22701485]
[1757916560959,2.47364666,244.48,244.45,10.93701485]
[1757916561353,3.07364666,244.47,244.45,14.31783096]
[1757916561560,2.41364666,244.46,244.45,14.31783096]
[1757916561768,3.07364666,244.46,244.45,4.09081611]
[1757916562069,3.07364666,244.46,244.43,4.09106203]
[1757916562372,2.41364666,244.44,244.43,4.09106203]
[1757916563264,2.41364666,244.44,244.41,10.22834914]
[1757916563444,2.41364666,244.44,244.41,10.93834914]
[1757916564058,33.97364666,244.48,244.42,3.12364666]
[1757916564381,33.97364666,244.48,244.43,0.71]
[1757916564577,33.97364666,244.48,244.44,0.71]
[1757916565084,33.97364666,244.48,244.45,0.71]
[1757916565486,33.97364666,244.48,244.43,14.31902794]
[1757916565689,0.06,244.48,244.44,0.71]
[1757916566169,0.06,244.48,244.45,2.41364666]
[1757916566571,0.06,244.48,244.46,0.71]
[1757916567066,0.06,244.48,244.47,0.71]
[1757916569071,0.06,244.48,244.47,4.80048144]
[1757916571886,0.06,244.48,244.47,4.83048144]
[1757916575788,0.06,244.48,244.47,4.12048144]
[1757916575992,0.06,244.48,244.47,4.83048144]
[1757916577389,0.72,244.48,244.47,4.12048144]
[1757916577583,3.13364666,244.48,244.47,4.12048144]
[1757916577784,3.13364666,244.48,244.47,0.03]
[1757916577990,0.06,244.48,244.47,0.03]
[1757916578887,3.16364666,244.48,244.47,0.03]
[1757916579274,0.06,244.48,244.47,0.03]
[1757916579471,2.47364666,244.48,244.47,0.03]
[1757916579674,3.16364666,244.48,244.47,0.03]
[1757916579982,0.75,244.48,244.47,0.03]
[1757916580188,0.06,244.48,244.47,0.03]
[1757916580568,0.06,244.48,244.47,0.72]
[1757916582092,0.06,244.48,244.47,4.81048144]
[1757916582272,0.06,244.48,244.47,4.12048144]
[1757916582600,2.47364666,244.48,244.47,4.12048144]
[1757916582778,3.16364666,244.48,244.47,4.12048144]
[1757916584393,3.16364666,244.48,244.47,0.03]
[1757916585195,33.96274958,244.48,244.47,0.03]
[1757916586871,7.96274958,244.48,244.47,0.03]
[1757916587072,12.05306371,244.48,244.47,0.03]
[1757916587278,26.0,244.46,244.44,0.03]
[1757916587597,26.0,244.42,244.37,0.03]
[1757916587767,2.41364666,244.38,244.37,4.12211216]
[1757916587968,28.41364666,244.38,244.37,0.03]
[1757916588173,29.10364666,244.38,244.37,0.03]
[1757916588595,31.54,244.41,244.37,0.72]
[1757916588873,3.10364666,244.41,244.37,4.12215533]
[1757916589091,2.41364666,244.41,244.38,0.69]
[1757916589268,0.69,244.47,244.39,0.69]
[1757916589673,2.41364666,244.46,244.4,2.41364666]
[1757916589912,2.41364666,244.46,244.41,0.69]
[1757916590074,2.41364666,244.46,244.44,0.03]
[1757916590584,31.58,244.47,244.44,0.03]
[1757916590809,0.06,244.48,244.45,0.69]
[1757916591170,0.06,244.48,244.46,0.69]
[1757916591474,0.06,244.48,244.45,2.41364666]
[1757916591678,0.06,244.48,244.44,0.03]
[1757916591894,0.06,244.48,244.45,0.69]
[1757916592089,2.47364666,244.48,244.44,0.03]
[1757916592289,2.41364666,244.45,244.44,0.03]
[1757916592488,26.06,244.48,244.44,0.03]
[1757916592796,2.41364666,244.45,244.44,0.03]
[1757916593198,0.69,244.45,244.44,0.03]
[1757916593502,3.10364666,244.45,244.44,0.03]
[1757916595299,2.41364666,244.45,244.44,0.03]
[1757916595506,3.10364666,244.45,244.44,0.03]
[1757916596013,0.75,244.48,244.44,0.03]
[1757916596199,26.0,244.45,244.44,0.03]
[1757916596402,28.41364666,244.45,244.44,0.03]
[1757916597102,26.0,244.45,244.44,0.03]
[1757916597281,28.41364666,244.45,244.44,0.03]
[1757916597780,58.41,244.48,244.44,0.03]
[1757916597981,2.41364666,244.46,244.44,0.7]
[1757916598199,28.41364666,244.46,244.44,0.03]
[1757916598407,2.41364666,244.45,244.44,0.03]
[1757916599177,26.0,244.46,244.44,0.03]
[1757916599399,34.76364666,244.45,244.44,0.03]
[1757916600513,53.34226439,244.45,244.44,0.03]
[1757916600677,2.41364666,244.43,244.42,0.03]
[1757916600881,4.98483584,244.43,244.42,0.03]
[1757916601090,5.67483584,244.43,244.42,0.03]
[1757916601616,21.84475,244.43,244.42,0.03]
[1757916602185,16.01237164,244.38,244.37,0.03]
[1757916602384,47.69237164,244.38,244.37,0.03]
[1757916602689,48.38237164,244.38,244.37,0.03]
[1757916605004,28.41677763,244.36,244.34,0.03]
[1757916605403,29.10677763,244.36,244.34,0.03]
[1757916608521,39.59559401,244.35,244.34,0.03]
[1757916608690,13.59559401,244.34,244.32,0.03]
[1757916608889,44.42914927,244.33,244.32,0.03]
[1757916609090,19.13914927,244.33,244.32,0.03]
[1757916610126,36.51355526,244.33,244.32,0.03]
[1757916610419,37.22355526,244.33,244.32,0.03]
[1757916610830,37.22355526,244.33,244.3,0.03]
[1757916610831,26.0,244.31,244.3,0.03]
[1757916610990,60.09677763,244.31,244.3,0.03]
[1757916611196,31.68,244.31,244.3,0.03]
[1757916611517,31.68,244.34,244.3,0.75]
[1757916611819,2.41677763,244.31,244.3,0.75]
[1757916612110,2.41677763,244.31,244.3,0.03]
[1757916613503,60.82677763,244.31,244.29,0.03]
[1757916613702,3.12677763,244.3,244.29,0.03]
[1757916613893,2.41677763,244.3,244.29,0.03]
[1757916614496,3.12677763,244.3,244.29,0.03]
[1757916614895,3.12677763,244.3,244.23,4.09447551]
[1757916614896,26.0,244.28,244.22,0.92]
[1757916615292,2.41677763,244.23,244.22,0.92]
[1757916615916,1.54838981,244.23,244.22,0.92]
[1757916616115,1.54838981,244.23,244.22,0.2]
[1757916616312,1.54838981,244.23,244.22,0.92]
[1757916616493,1.54849922,244.23,244.22,0.92]
[1757916618522,0.71,244.33,244.23,14.33075379]
[1757916618722,1.54849922,244.26,244.24,0.72]
[1757916619223,1.54849922,244.25,244.24,4.81433344]
[1757916619423,1.54849922,244.25,244.24,4.09433344]
[1757916619721,1.54849922,244.25,244.22,4.29465552]
[1757916619913,1.54849922,244.23,244.22,0.2]
[1757916620720,26.0,244.3,244.23,14.33075379]
[1757916621034,1.54849922,244.27,244.24,0.72]
[1757916621197,1.54849922,244.27,244.25,4.09416581]
[1757916621402,1.54849922,244.28,244.26,0.72]
[1757916621601,13.59559401,244.36,244.26,0.72]
[1757916621602,1.54849922,244.29,244.26,0.72]
[1757916621803,1.54849922,244.3,244.26,0.72]
[1757916622015,28.74,244.35,244.29,1.54849922]
[1757916622209,1.54849922,244.37,244.3,2.26849922]
[1757916622427,31.72,244.37,244.31,0.72]
[1757916622626,1.54849922,244.37,244.31,0.72]
[1757916622806,26.0,244.36,244.31,2.26849922]
[1757916623004,26.0,244.36,244.32,0.72]
[1757916623322,1.54849922,244.38,244.34,4.09265777]
[1757916623521,26.0,244.36,244.34,4.09265777]
[1757916623707,1.54849922,244.4,244.34,4.09265777]
[1757916623909,31.72,244.4,244.35,0.72]
[1757916624110,58.43,244.42,244.36,0.72]
[1757916624424,1.54849922,244.4,244.34,14.32430219]
[1757916624629,1.54849922,244.39,244.34,14.32430219]
[1757916624937,1.54849922,244.37,244.34,4.09265777]
[1757916625135,2.25849922,244.37,244.34,4.09265777]
[1757916625336,1.54849922,244.36,244.32,4.09299279]
[1757916625541,1.54849922,244.36,244.23,13.59559401]
[1757916625542,1.54849922,244.33,244.28,4.813663]
[1757916625719,2.25849922,244.33,244.28,4.813663]
[1757916626444,57.74,244.37,244.28,4.813663]
[1757916626622,1.54849922,244.33,244.28,4.813663]
[1757916626825,1.54849922,244.33,244.29,0.72]
[1757916627546,1.54849922,244.33,244.29,4.09338142]
[1757916627723,1.54849922,244.35,244.3,0.72]
[1757916628119,1.54849922,244.35,244.31,0.72]
[1757916628334,1.54849922,244.35,244.32,0.72]
[1757916629823,1.54849922,244.35,244.32,4.81286485]
[1757916630225,1.54849922,244.34,244.3,4.09316503]
[1757916630431,31.72,244.37,244.31,0.72]
[1757916630648,1.54849922,244.35,244.31,0.72]
[1757916631324,1.54849922,244.35,244.32,0.72]
[1757916631748,2.25849922,244.34,244.3,4.09316503]
[1757916632045,26.71,244.34,244.3,4.09316503]
[1757916632754,26.0,244.34,244.31,2.26849922]
[1757916632923,1.54849922,244.37,244.32,0.72]
[1757916633322,26.0,244.36,244.32,0.72]
[1757916633519,26.0,244.36,244.33,0.72]
[1757916633743,26.0,244.36,244.32,4.09299279]
[1757916634329,28.25849922,244.36,244.32,4.09299279]
[1757916635345,1.54849922,244.35,244.3,4.81325653]
[1757916635664,1.54849922,244.31,244.27,4.09382774]
[1757916635852,2.25849922,244.3,244.24,5.64283266]